[Event "*** SCC Grand Prix: Titled Tuesday Blitz"]
[Site "Chess.com"]
[Date "2020.09.29"]
[Round "8"]
[White "MomchilPetkov"]
[Black "Aborigen_came"]
[Result "1-0"]
[WhiteElo "2620"]
[BlackElo "2734"]
[TimeControl "180+1"]
[EndTime "11:33:13 PDT"]
[Termination "MomchilPetkov won by checkmate"]

1. e4 {[%clk 0:03:00.9]} 1... Nf6 {[%clk 0:02:58.4]} 2. e5 {[%clk 0:02:57]} 2...
Nd5 {[%clk 0:02:58.4]} 3. d4 {[%clk 0:02:57.4]} 3... d6 {[%clk 0:02:58.1]} 4.
exd6 {[%clk 0:02:57.9]} 4... cxd6 {[%clk 0:02:58.4]} 5. c4 {[%clk 0:02:58.2]}
5... Nf6 {[%clk 0:02:57]} 6. Nc3 {[%clk 0:02:40.6]} 6... g6 {[%clk 0:02:57.2]}
7. h3 {[%clk 0:02:35.7]} 7... Bg7 {[%clk 0:02:57.3]} 8. Nf3 {[%clk 0:02:36.2]}
8... O-O {[%clk 0:02:57.5]} 9. Be2 {[%clk 0:02:36.1]} 9... Nc6 {[%clk
0:02:39.7]} 10. d5 {[%clk 0:02:35.2]} 10... Nb4 {[%clk 0:02:37.5]} 11. O-O
{[%clk 0:02:33.3]} 11... Bd7 {[%clk 0:02:23.2]} 12. Be3 {[%clk 0:02:33.2]} 12...
Na6 {[%clk 0:02:18]} 13. Re1 {[%clk 0:02:29]} 13... Rc8 {[%clk 0:02:14.4]} 14.
Bf1 {[%clk 0:02:28.6]} 14... Nc5 {[%clk 0:02:09.3]} 15. Bd4 {[%clk 0:02:25.4]}
15... e5 {[%clk 0:02:03.5]} 16. dxe6 {[%clk 0:02:24.8]} 16... Bxe6 {[%clk
0:01:58.5]} 17. b3 {[%clk 0:02:22.5]} 17... h6 {[%clk 0:01:56.2]} 18. Qd2 {[%clk
0:02:17.9]} 18... a6 {[%clk 0:01:52.3]} 19. Rad1 {[%clk 0:02:15.9]} 19... g5
{[%clk 0:01:46.7]} 20. g3 {[%clk 0:01:38.9]} 20... Qd7 {[%clk 0:01:25.3]} 21.
Kh2 {[%clk 0:01:38.9]} 21... Rfe8 {[%clk 0:01:04.8]} 22. Bg2 {[%clk 0:01:36.8]}
22... g4 {[%clk 0:01:04.5]} 23. Nh4 {[%clk 0:01:21]} 23... gxh3 {[%clk 0:01:03]}
24. Bf3 {[%clk 0:01:18.5]} 24... Ng4+ {[%clk 0:00:51]} 25. Kh1 {[%clk
0:01:02.9]} 25... Ne5 {[%clk 0:00:44.4]} 26. Bh5 {[%clk 0:00:39.6]} 26... Bg4
{[%clk 0:00:37.9]} 27. Bxg4 {[%clk 0:00:37.1]} 27... Qxg4 {[%clk 0:00:37.4]} 28.
Re3 {[%clk 0:00:32.9]} 28... Ng6 {[%clk 0:00:27.2]} 29. Nxg6 {[%clk 0:00:31.8]}
29... Rxe3 {[%clk 0:00:17.6]} 30. Qxe3 {[%clk 0:00:26.2]} 30... Qxg6 {[%clk
0:00:14.6]} 31. Bxg7 {[%clk 0:00:25.4]} 31... Qxg7 {[%clk 0:00:13.9]} 32. Rxd6
{[%clk 0:00:22.3]} 32... Ne6 {[%clk 0:00:12.7]} 33. Nd5 {[%clk 0:00:19.7]} 33...
Re8 {[%clk 0:00:11.5]} 34. Kh2 {[%clk 0:00:15.4]} 34... Kh8 {[%clk 0:00:11.1]}
35. Rd7 {[%clk 0:00:11.3]} 35... Rf8 {[%clk 0:00:09]} 36. f4 {[%clk 0:00:05.1]}
36... Re8 {[%clk 0:00:06.4]} 37. f5 {[%clk 0:00:03.7]} 37... Nc7 {[%clk
0:00:06.3]} 38. Ne7 {[%clk 0:00:03.2]} 38... Qb2+ {[%clk 0:00:04.6]} 39. Kxh3
{[%clk 0:00:03.6]} 39... Qa1 {[%clk 0:00:03.9]} 40. Qxh6# {[%clk 0:00:03.3]} 1-0

[Event "*** SCC Grand Prix: Titled Tuesday Blitz"]
[Site "Chess.com"]
[Date "2020.09.29"]
[Round "8"]
[White "awesomevishesh"]
[Black "KaspMagAlpha"]
[Result "1-0"]
[WhiteElo "2415"]
[BlackElo "2240"]
[TimeControl "180+1"]
[EndTime "11:33:14 PDT"]
[Termination "awesomevishesh won by checkmate"]

1. e4 {[%clk 0:02:54.5]} 1... c5 {[%clk 0:02:52.2]} 2. Nf3 {[%clk 0:02:54.1]}
2... e6 {[%clk 0:02:51.9]} 3. g3 {[%clk 0:02:53.2]} 3... b6 {[%clk 0:02:49.1]}
4. Bg2 {[%clk 0:02:53.3]} 4... Bb7 {[%clk 0:02:49.4]} 5. Nc3 {[%clk 0:02:53.8]}
5... d5 {[%clk 0:02:48.6]} 6. exd5 {[%clk 0:02:53.2]} 6... exd5 {[%clk
0:02:48.2]} 7. d4 {[%clk 0:02:53.5]} 7... Nf6 {[%clk 0:02:47.8]} 8. O-O {[%clk
0:02:52.6]} 8... Be7 {[%clk 0:02:47.8]} 9. Ne5 {[%clk 0:02:41.9]} 9... O-O
{[%clk 0:02:44.4]} 10. Bg5 {[%clk 0:02:39.7]} 10... cxd4 {[%clk 0:02:39.1]} 11.
Qxd4 {[%clk 0:02:38.8]} 11... Nc6 {[%clk 0:02:39.3]} 12. Nxc6 {[%clk 0:02:38.2]}
12... Bxc6 {[%clk 0:02:39.6]} 13. Rad1 {[%clk 0:02:35.6]} 13... Qd7 {[%clk
0:02:37.7]} 14. Qd3 {[%clk 0:02:20.2]} 14... Rad8 {[%clk 0:02:32.4]} 15. Bxf6
{[%clk 0:01:52.3]} 15... Bxf6 {[%clk 0:02:30.6]} 16. Nxd5 {[%clk 0:01:52.3]}
16... Bxd5 {[%clk 0:02:29.3]} 17. Bxd5 {[%clk 0:01:53.2]} 17... Bxb2 {[%clk
0:02:27.8]} 18. Rfe1 {[%clk 0:01:22.1]} 18... g6 {[%clk 0:02:18.6]} 19. h4
{[%clk 0:01:20.3]} 19... Kg7 {[%clk 0:02:17.7]} 20. c3 {[%clk 0:01:15]} 20...
Qc7 {[%clk 0:02:03.3]} 21. Qd4+ {[%clk 0:01:03.6]} 21... Kg8 {[%clk 0:01:57.8]}
22. Re3 {[%clk 0:00:59.2]} 22... Ba3 {[%clk 0:01:55.9]} 23. Rf3 {[%clk
0:00:48.4]} 23... Bc5 {[%clk 0:01:54.9]} 24. Qf6 {[%clk 0:00:42.7]} 24... Rd7
{[%clk 0:01:49.5]} 25. h5 {[%clk 0:00:39.4]} 25... Rd6 {[%clk 0:01:32.3]} 26.
Qe5 {[%clk 0:00:23.4]} 26... Qd8 {[%clk 0:01:28]} 27. hxg6 {[%clk 0:00:21.3]}
27... hxg6 {[%clk 0:01:17.1]} 28. Kg2 {[%clk 0:00:20.9]} 28... Rxd5 {[%clk
0:00:45.1]} 29. Rxd5 {[%clk 0:00:19.8]} 29... Qe7 {[%clk 0:00:44.7]} 30. Qxe7
{[%clk 0:00:19]} 30... Bxe7 {[%clk 0:00:44.4]} 31. Rd7 {[%clk 0:00:19.9]} 31...
Bc5 {[%clk 0:00:43.5]} 32. Rxa7 {[%clk 0:00:19.8]} 32... Kg7 {[%clk 0:00:43.9]}
33. c4 {[%clk 0:00:16.7]} 33... Kg8 {[%clk 0:00:43.3]} 34. Rc7 {[%clk
0:00:12.3]} 34... Kg7 {[%clk 0:00:42.7]} 35. g4 {[%clk 0:00:11]} 35... g5 {[%clk
0:00:41.3]} 36. Rf5 {[%clk 0:00:10.3]} 36... Kg6 {[%clk 0:00:41.2]} 37. Rc6+
{[%clk 0:00:10.1]} 37... f6 {[%clk 0:00:41.3]} 38. Kf3 {[%clk 0:00:09.1]} 38...
Bd4 {[%clk 0:00:41.1]} 39. Rd5 {[%clk 0:00:08.3]} 39... Be5 {[%clk 0:00:39.1]}
40. Rxe5 {[%clk 0:00:08.4]} 40... Ra8 {[%clk 0:00:36]} 41. Ree6 {[%clk
0:00:08.5]} 41... Rf8 {[%clk 0:00:35.4]} 42. Rxb6 {[%clk 0:00:07.9]} 42... Rf7
{[%clk 0:00:35.5]} 43. c5 {[%clk 0:00:08.1]} 43... Kg7 {[%clk 0:00:35.5]} 44.
Rbd6 {[%clk 0:00:08.1]} 44... Rf8 {[%clk 0:00:33.1]} 45. c6 {[%clk 0:00:08.2]}
45... Ra8 {[%clk 0:00:31.2]} 46. c7 {[%clk 0:00:08]} 46... Rc8 {[%clk 0:00:29]}
47. Rd7+ {[%clk 0:00:07.5]} 47... Kg6 {[%clk 0:00:28.9]} 48. Ree7 {[%clk
0:00:07.5]} 48... f5 {[%clk 0:00:27.9]} 49. Re6# {[%clk 0:00:07.6]} 1-0

[Event "*** SCC Grand Prix: Titled Tuesday Blitz"]
[Site "Chess.com"]
[Date "2020.09.29"]
[Round "8"]
[White "AniJak"]
[Black "Shivagami"]
[Result "1-0"]
[WhiteElo "2381"]
[BlackElo "2220"]
[TimeControl "180+1"]
[EndTime "11:33:15 PDT"]
[Termination "AniJak won on time"]

1. e4 {[%clk 0:02:19.5]} 1... c5 {[%clk 0:02:55.4]} 2. Nc3 {[%clk 0:02:18.5]}
2... e6 {[%clk 0:02:52.7]} 3. g3 {[%clk 0:02:19]} 3... d5 {[%clk 0:02:52.7]} 4.
exd5 {[%clk 0:02:19.4]} 4... exd5 {[%clk 0:02:52.8]} 5. d4 {[%clk 0:02:20]} 5...
cxd4 {[%clk 0:02:47.6]} 6. Qxd4 {[%clk 0:02:20.9]} 6... Nf6 {[%clk 0:02:42.1]}
7. Bg2 {[%clk 0:02:14.3]} 7... Nc6 {[%clk 0:02:40.2]} 8. Qd1 {[%clk 0:02:11.5]}
8... Bb4 {[%clk 0:02:37.5]} 9. Bd2 {[%clk 0:02:09]} 9... O-O {[%clk 0:02:36.8]}
10. Nge2 {[%clk 0:02:05.3]} 10... d4 {[%clk 0:02:34.9]} 11. Nb1 {[%clk
0:02:04.9]} 11... Bxd2+ {[%clk 0:02:30.8]} 12. Nxd2 {[%clk 0:02:03.9]} 12... d3
{[%clk 0:02:26.4]} 13. cxd3 {[%clk 0:02:03.6]} 13... Qxd3 {[%clk 0:02:26.1]} 14.
O-O {[%clk 0:02:03.1]} 14... Bg4 {[%clk 0:02:23.8]} 15. f3 {[%clk 0:01:28.6]}
15... Qe3+ {[%clk 0:02:20.2]} 16. Kh1 {[%clk 0:01:28.5]} 16... Rad8 {[%clk
0:02:17]} 17. Nc4 {[%clk 0:01:15.7]} 17... Qe6 {[%clk 0:02:03.3]} 18. Qc2 {[%clk
0:01:09.9]} 18... Bf5 {[%clk 0:02:03.1]} 19. Qb3 {[%clk 0:01:04.1]} 19... Qxe2
{[%clk 0:01:51]} 20. Rfe1 {[%clk 0:00:59.5]} 20... Qc2 {[%clk 0:01:46.4]} 21.
Qxb7 {[%clk 0:00:56.1]} 21... Qxc4 {[%clk 0:01:43]} 22. Rac1 {[%clk 0:00:56.3]}
22... Na5 {[%clk 0:01:34.7]} 23. Qxa7 {[%clk 0:00:52.2]} 23... Qxa2 {[%clk
0:01:26.3]} 24. Ra1 {[%clk 0:00:43.1]} 24... Qxb2 {[%clk 0:01:26]} 25. Qxa5
{[%clk 0:00:42.6]} 25... Bg6 {[%clk 0:01:23.1]} 26. Ra2 {[%clk 0:00:41.5]} 26...
Qd4 {[%clk 0:01:19.2]} 27. Rae2 {[%clk 0:00:41.3]} 27... h6 {[%clk 0:01:14.8]}
28. g4 {[%clk 0:00:41]} 28... Nd5 {[%clk 0:01:12.9]} 29. Rd2 {[%clk 0:00:40.3]}
29... Qc4 {[%clk 0:01:07.4]} 30. Bf1 {[%clk 0:00:39.7]} 30... Qc6 {[%clk
0:01:01.4]} 31. Red1 {[%clk 0:00:38.1]} 31... Ne3 {[%clk 0:00:16.7]} 32. Rxd8
{[%clk 0:00:27.9]} 32... Qxf3+ {[%clk 0:00:16.7]} 33. Kg1 {[%clk 0:00:28.2]}
33... Qxg4+ {[%clk 0:00:16.8]} 34. Kf2 {[%clk 0:00:28.6]} 34... Nxd1+ {[%clk
0:00:15.3]} 35. Ke1 {[%clk 0:00:25.2]} 35... h5 {[%clk 0:00:04.7]} 36. Rxf8+
{[%clk 0:00:23.8]} 36... Kh7 {[%clk 0:00:04.2]} 37. Rd8 {[%clk 0:00:19.6]} 37...
Ne3 {[%clk 0:00:02.8]} 38. Be2 {[%clk 0:00:18.4]} 38... Qg1+ {[%clk 0:00:02.6]}
39. Kd2 {[%clk 0:00:18]} 39... Nf5 {[%clk 0:00:02.6]} 40. Rd5 {[%clk 0:00:16]}
40... Qg5+ {[%clk 0:00:02.9]} 41. Kc3 {[%clk 0:00:14.6]} 41... Qe3+ {[%clk
0:00:02.5]} 42. Bd3 {[%clk 0:00:14.4]} 42... Ne7 {[%clk 0:00:01.2]} 43. Rxh5+
{[%clk 0:00:13.6]} 1-0

[Event "*** SCC Grand Prix: Titled Tuesday Blitz"]
[Site "Chess.com"]
[Date "2020.09.29"]
[Round "8"]
[White "Riptide27"]
[Black "PavelChernomordik"]
[Result "0-1"]
[WhiteElo "2508"]
[BlackElo "2338"]
[TimeControl "180+1"]
[EndTime "11:33:16 PDT"]
[Termination "PavelChernomordik won on time"]

1. d4 {[%clk 0:03:00.9]} 1... g6 {[%clk 0:02:55.7]} 2. e4 {[%clk 0:02:59.6]}
2... Bg7 {[%clk 0:02:56]} 3. Nc3 {[%clk 0:02:59.4]} 3... d6 {[%clk 0:02:56.3]}
4. f4 {[%clk 0:02:58.6]} 4... a6 {[%clk 0:02:56]} 5. Nf3 {[%clk 0:02:56.8]} 5...
b5 {[%clk 0:02:55.4]} 6. Bd3 {[%clk 0:02:57.3]} 6... Nd7 {[%clk 0:02:55.4]} 7.
e5 {[%clk 0:02:56.9]} 7... c5 {[%clk 0:02:55.4]} 8. Be4 {[%clk 0:02:46.1]} 8...
Rb8 {[%clk 0:02:53.6]} 9. Qe2 {[%clk 0:02:39.2]} 9... b4 {[%clk 0:02:41.9]} 10.
Nd5 {[%clk 0:02:30.3]} 10... e6 {[%clk 0:02:37.4]} 11. exd6 {[%clk 0:02:30.2]}
11... exd5 {[%clk 0:02:31]} 12. Bxd5+ {[%clk 0:02:28.8]} 12... Kf8 {[%clk
0:02:29.1]} 13. Bxf7 {[%clk 0:02:20.9]} 13... cxd4 {[%clk 0:02:07.5]} 14. O-O
{[%clk 0:01:57.1]} 14... Nc5 {[%clk 0:01:56.7]} 15. Bc4 {[%clk 0:01:42.7]} 15...
Qxd6 {[%clk 0:01:49.6]} 16. Ng5 {[%clk 0:01:28.9]} 16... Nh6 {[%clk 0:01:43.6]}
17. Bd2 {[%clk 0:01:27.9]} 17... Bg4 {[%clk 0:01:33.1]} 18. Qf2 {[%clk
0:01:27.6]} 18... Bf5 {[%clk 0:01:18.7]} 19. Rae1 {[%clk 0:01:22.2]} 19... Ng4
{[%clk 0:01:10.1]} 20. Qg3 {[%clk 0:01:10.3]} 20... Ne3 {[%clk 0:01:01.9]} 21.
Nf7 {[%clk 0:00:51.9]} 21... Nxf1 {[%clk 0:00:50.2]} 22. Rxf1 {[%clk 0:00:52.8]}
22... Qf6 {[%clk 0:00:44.4]} 23. Nxh8 {[%clk 0:00:17.4]} 23... Ne4 {[%clk
0:00:41.1]} 24. Qe1 {[%clk 0:00:17.5]} 24... Nxd2 {[%clk 0:00:34.3]} 25. Qxd2
{[%clk 0:00:18.4]} 25... Bxh8 {[%clk 0:00:31.7]} 26. Re1 {[%clk 0:00:19.3]}
26... Bg7 {[%clk 0:00:23.4]} 27. h3 {[%clk 0:00:17.2]} 27... h5 {[%clk
0:00:21.4]} 28. a3 {[%clk 0:00:17.2]} 28... bxa3 {[%clk 0:00:20]} 29. bxa3
{[%clk 0:00:16.7]} 29... Qd6 {[%clk 0:00:18.1]} 30. Qa5 {[%clk 0:00:15.1]} 30...
d3 {[%clk 0:00:14.1]} 31. cxd3 {[%clk 0:00:12.6]} 31... Qb6+ {[%clk 0:00:14.4]}
32. Qxb6 {[%clk 0:00:11.2]} 32... Rxb6 {[%clk 0:00:14.7]} 33. a4 {[%clk
0:00:10.2]} 33... Bd4+ {[%clk 0:00:15]} 34. Kh2 {[%clk 0:00:09.8]} 34... a5
{[%clk 0:00:14.4]} 35. Re2 {[%clk 0:00:09.3]} 35... Rb2 {[%clk 0:00:13]} 36. Re1
{[%clk 0:00:05.8]} 36... h4 {[%clk 0:00:11]} 37. Bb5 {[%clk 0:00:04.9]} 37...
Bf2 {[%clk 0:00:10.2]} 38. Rc1 {[%clk 0:00:03.5]} 38... Kf7 {[%clk 0:00:09.7]}
0-1

[Event "*** SCC Grand Prix: Titled Tuesday Blitz"]
[Site "Chess.com"]
[Date "2020.09.29"]
[Round "8"]
[White "gagtemp"]
[Black "Chamal_Gedgafov"]
[Result "0-1"]
[WhiteElo "1963"]
[BlackElo "2145"]
[TimeControl "180+1"]
[EndTime "11:33:16 PDT"]
[Termination "Chamal_Gedgafov won by resignation"]

1. e4 {[%clk 0:03:00.9]} 1... e6 {[%clk 0:02:58.3]} 2. d4 {[%clk 0:02:59.8]}
2... d5 {[%clk 0:02:57.7]} 3. Nc3 {[%clk 0:03:00.1]} 3... Bb4 {[%clk 0:02:54.1]}
4. e5 {[%clk 0:02:58.8]} 4... c5 {[%clk 0:02:54.2]} 5. a3 {[%clk 0:02:58.5]}
5... Bxc3+ {[%clk 0:02:54.7]} 6. bxc3 {[%clk 0:02:59.4]} 6... Ne7 {[%clk
0:02:55]} 7. Qg4 {[%clk 0:02:59.1]} 7... Qc7 {[%clk 0:02:55]} 8. Qxg7 {[%clk
0:02:51.7]} 8... Rg8 {[%clk 0:02:55.1]} 9. Qxh7 {[%clk 0:02:50.8]} 9... cxd4
{[%clk 0:02:56]} 10. Ne2 {[%clk 0:02:39.9]} 10... Nbc6 {[%clk 0:02:55.3]} 11. f4
{[%clk 0:02:35.7]} 11... Bd7 {[%clk 0:02:54.2]} 12. Qd3 {[%clk 0:02:28.3]} 12...
dxc3 {[%clk 0:02:53.8]} 13. Nxc3 {[%clk 0:02:26.6]} 13... a6 {[%clk 0:02:53.4]}
14. a4 {[%clk 0:02:22.4]} 14... Na5 {[%clk 0:02:51.1]} 15. Ne2 {[%clk
0:02:04.1]} 15... Nf5 {[%clk 0:02:42.8]} 16. Ba3 {[%clk 0:02:00.7]} 16... Nc4
{[%clk 0:02:34.5]} 17. Bb4 {[%clk 0:01:46.2]} 17... Rc8 {[%clk 0:02:21]} 18. a5
{[%clk 0:01:42.5]} 18... Bb5 {[%clk 0:02:10.6]} 19. Qb3 {[%clk 0:01:35.6]} 19...
Nce3 {[%clk 0:02:01]} 20. c3 {[%clk 0:01:29.7]} 20... Nxg2+ {[%clk 0:01:53.3]}
21. Kf2 {[%clk 0:01:18.3]} 21... Nge3 {[%clk 0:01:44.6]} 22. Bh3 {[%clk
0:01:10.7]} 22... Bxe2 {[%clk 0:01:15.1]} 23. Kxe2 {[%clk 0:01:10]} 23... d4
{[%clk 0:01:15.6]} 24. Rhg1 {[%clk 0:00:52.3]} 24... Kd7 {[%clk 0:01:02.1]} 25.
Qa4+ {[%clk 0:00:43.5]} 25... Qc6 {[%clk 0:00:56.5]} 26. Qxc6+ {[%clk
0:00:42.7]} 26... Kxc6 {[%clk 0:00:55.6]} 27. Rxg8 {[%clk 0:00:42.4]} 27... Rxg8
{[%clk 0:00:54.5]} 28. cxd4 {[%clk 0:00:41.2]} 28... Nxd4+ {[%clk 0:00:35.9]}
29. Kd3 {[%clk 0:00:27.4]} 29... Ndc2 {[%clk 0:00:27.9]} 30. Rc1 {[%clk
0:00:25]} 30... Kb5 {[%clk 0:00:26.1]} 31. Bd2 {[%clk 0:00:23.7]} 31... Rh8
{[%clk 0:00:19.5]} 32. Bxe3 {[%clk 0:00:23]} 32... Nxe3 {[%clk 0:00:15.5]} 33.
Kxe3 {[%clk 0:00:19.4]} 33... Rxh3+ {[%clk 0:00:14.8]} 34. Ke4 {[%clk
0:00:17.6]} 34... Rxh2 {[%clk 0:00:14.7]} 35. Rc7 {[%clk 0:00:17.1]} 35... Rh7
{[%clk 0:00:13.8]} 36. Rxb7+ {[%clk 0:00:16.8]} 36... Kxa5 {[%clk 0:00:14]} 37.
f5 {[%clk 0:00:15.8]} 37... exf5+ {[%clk 0:00:13.2]} 38. Kxf5 {[%clk 0:00:15.8]}
38... Ka4 {[%clk 0:00:14.1]} 39. Kf6 {[%clk 0:00:15.5]} 39... a5 {[%clk
0:00:13.4]} 40. e6 {[%clk 0:00:15.5]} 40... Rh6+ {[%clk 0:00:12.6]} 41. Kxf7
{[%clk 0:00:15]} 41... Rh7+ {[%clk 0:00:12.2]} 42. Kf8 {[%clk 0:00:12]} 42...
Rxb7 {[%clk 0:00:13.1]} 43. e7 {[%clk 0:00:12.1]} 43... Rxe7 {[%clk 0:00:12.8]}
0-1

[Event "*** SCC Grand Prix: Titled Tuesday Blitz"]
[Site "Chess.com"]
[Date "2020.09.29"]
[Round "8"]
[White "kidagent"]
[Black "Nara_Kh"]
[Result "0-1"]
[WhiteElo "2289"]
[BlackElo "2400"]
[TimeControl "180+1"]
[EndTime "11:33:17 PDT"]
[Termination "Nara_Kh won on time"]

1. e4 {[%clk 0:03:00.9]} 1... c5 {[%clk 0:02:58.3]} 2. Nf3 {[%clk 0:03:00.6]}
2... d6 {[%clk 0:02:58.4]} 3. d4 {[%clk 0:03:00.7]} 3... Nf6 {[%clk 0:02:59]} 4.
Nc3 {[%clk 0:03:00.1]} 4... cxd4 {[%clk 0:02:59.4]} 5. Nxd4 {[%clk 0:03:00.4]}
5... a6 {[%clk 0:02:59.6]} 6. Bg5 {[%clk 0:02:58.4]} 6... Nbd7 {[%clk
0:02:58.7]} 7. Qe2 {[%clk 0:02:58.6]} 7... h6 {[%clk 0:02:54.2]} 8. Bh4 {[%clk
0:02:58.6]} 8... g6 {[%clk 0:02:53.6]} 9. O-O-O {[%clk 0:02:57.1]} 9... e5
{[%clk 0:02:52.7]} 10. Nb3 {[%clk 0:02:28.1]} 10... Qc7 {[%clk 0:02:50]} 11. Kb1
{[%clk 0:02:25.5]} 11... b5 {[%clk 0:02:47]} 12. g4 {[%clk 0:02:15.1]} 12... Be7
{[%clk 0:02:40]} 13. Bg2 {[%clk 0:02:08.5]} 13... Bb7 {[%clk 0:02:36.3]} 14.
Bxf6 {[%clk 0:01:55.5]} 14... Nxf6 {[%clk 0:02:32.9]} 15. h4 {[%clk 0:01:49.2]}
15... b4 {[%clk 0:02:00.3]} 16. Nd5 {[%clk 0:01:48.2]} 16... Nxd5 {[%clk
0:01:52.3]} 17. exd5 {[%clk 0:01:49.1]} 17... Kf8 {[%clk 0:01:35.3]} 18. Qe3
{[%clk 0:01:40.1]} 18... Kg7 {[%clk 0:01:25.9]} 19. f4 {[%clk 0:01:39.1]} 19...
exf4 {[%clk 0:01:10.2]} 20. Qxf4 {[%clk 0:01:38.4]} 20... Bf6 {[%clk 0:01:10.6]}
21. Qxb4 {[%clk 0:01:30.2]} 21... a5 {[%clk 0:01:05.1]} 22. Qa4 {[%clk
0:01:25.3]} 22... Rhe8 {[%clk 0:00:48.2]} 23. Nd4 {[%clk 0:01:16]} 23... Re3
{[%clk 0:00:35.1]} 24. Rdf1 {[%clk 0:01:09.5]} 24... Qb6 {[%clk 0:00:23]} 25.
Nb3 {[%clk 0:00:41.4]} 25... Be5 {[%clk 0:00:22.1]} 26. Qd7 {[%clk 0:00:36.5]}
26... Rf8 {[%clk 0:00:17.6]} 27. a4 {[%clk 0:00:27.7]} 27... Ba6 {[%clk
0:00:17.6]} 28. Rf3 {[%clk 0:00:23.7]} 28... Rxf3 {[%clk 0:00:16]} 29. Bxf3
{[%clk 0:00:23.6]} 29... Bc4 {[%clk 0:00:16.4]} 30. Qc6 {[%clk 0:00:16.6]} 30...
Qe3 {[%clk 0:00:12.1]} 31. Qxc4 {[%clk 0:00:15.1]} 31... Qxf3 {[%clk 0:00:12.7]}
32. Re1 {[%clk 0:00:13]} 32... Qg2 {[%clk 0:00:11.5]} 33. Nxa5 {[%clk
0:00:09.1]} 33... Ra8 {[%clk 0:00:10.6]} 34. Nc6 {[%clk 0:00:08.3]} 34... Bf6
{[%clk 0:00:09]} 35. g5 {[%clk 0:00:07.6]} 35... hxg5 {[%clk 0:00:09]} 36. hxg5
{[%clk 0:00:07.8]} 36... Qxg5 {[%clk 0:00:09.8]} 37. a5 {[%clk 0:00:06.8]} 37...
Qd2 {[%clk 0:00:09.9]} 38. Re2 {[%clk 0:00:04.3]} 38... Qd1+ {[%clk 0:00:10.1]}
39. Ka2 {[%clk 0:00:03.8]} 39... Qg1 {[%clk 0:00:09.6]} 40. a6 {[%clk
0:00:02.8]} 40... Rc8 {[%clk 0:00:09]} 41. b4 {[%clk 0:00:01.1]} 41... Ra8
{[%clk 0:00:08.5]} 0-1

[Event "*** SCC Grand Prix: Titled Tuesday Blitz"]
[Site "Chess.com"]
[Date "2020.09.29"]
[Round "8"]
[White "Godzillator"]
[Black "Egorov_Pavel"]
[Result "1/2-1/2"]
[WhiteElo "2335"]
[BlackElo "2441"]
[TimeControl "180+1"]
[EndTime "11:33:18 PDT"]
[Termination "Game drawn - insufficient material"]

1. d4 {[%clk 0:03:00.9]} 1... Nf6 {[%clk 0:03:00.9]} 2. c4 {[%clk 0:03:01.3]}
2... g6 {[%clk 0:03:01.3]} 3. Nc3 {[%clk 0:03:01.8]} 3... d5 {[%clk 0:03:01.8]}
4. Nf3 {[%clk 0:03:01.7]} 4... Bg7 {[%clk 0:03:01.9]} 5. h4 {[%clk 0:03:02.2]}
5... c5 {[%clk 0:02:59.2]} 6. cxd5 {[%clk 0:02:59.1]} 6... Nxd5 {[%clk
0:02:58.9]} 7. h5 {[%clk 0:02:57.6]} 7... cxd4 {[%clk 0:02:49.4]} 8. Nxd4 {[%clk
0:02:55.1]} 8... Nxc3 {[%clk 0:02:48.7]} 9. bxc3 {[%clk 0:02:55.1]} 9... Nc6
{[%clk 0:02:49.1]} 10. e3 {[%clk 0:02:50.2]} 10... Nxd4 {[%clk 0:02:46.9]} 11.
cxd4 {[%clk 0:02:46.7]} 11... O-O {[%clk 0:02:40.9]} 12. hxg6 {[%clk 0:02:46.7]}
12... hxg6 {[%clk 0:02:41.8]} 13. Bc4 {[%clk 0:02:44.9]} 13... Qc7 {[%clk
0:02:36.2]} 14. Bb3 {[%clk 0:02:43.5]} 14... e5 {[%clk 0:02:24.7]} 15. Bb2
{[%clk 0:02:40.6]} 15... exd4 {[%clk 0:02:20.1]} 16. Bxd4 {[%clk 0:02:36]} 16...
Rd8 {[%clk 0:02:20.5]} 17. Rc1 {[%clk 0:02:33.4]} 17... Qa5+ {[%clk 0:02:18.9]}
18. Kf1 {[%clk 0:02:31.2]} 18... Bxd4 {[%clk 0:02:15.5]} 19. exd4 {[%clk
0:02:31]} 19... Bf5 {[%clk 0:02:01.6]} 20. d5 {[%clk 0:02:27.3]} 20... Rac8
{[%clk 0:01:54.7]} 21. Rxc8 {[%clk 0:02:26.5]} 21... Rxc8 {[%clk 0:01:55.6]} 22.
Rh4 {[%clk 0:02:21]} 22... Qc3 {[%clk 0:00:58]} 23. Kg1 {[%clk 0:02:16.2]} 23...
b5 {[%clk 0:00:44.8]} 24. d6 {[%clk 0:02:02.9]} 24... Qb2 {[%clk 0:00:32]} 25.
d7 {[%clk 0:01:48.4]} 25... Rd8 {[%clk 0:00:27.4]} 26. Rd4 {[%clk 0:01:47.4]}
26... Qc3 {[%clk 0:00:18.9]} 27. Qe2 {[%clk 0:00:56.6]} 27... Qc7 {[%clk
0:00:18.4]} 28. Qe7 {[%clk 0:00:55.1]} 28... Rxd7 {[%clk 0:00:09.6]} 29. Bxf7+
{[%clk 0:00:51.1]} 29... Kg7 {[%clk 0:00:09.9]} 30. Rxd7 {[%clk 0:00:34.4]}
30... Qxd7 {[%clk 0:00:10.8]} 31. Qxd7 {[%clk 0:00:32]} 31... Bxd7 {[%clk
0:00:11.7]} 32. Bd5 {[%clk 0:00:28.9]} 32... Kf6 {[%clk 0:00:11.5]} 33. a3
{[%clk 0:00:27.6]} 33... a5 {[%clk 0:00:09.5]} 34. Kf1 {[%clk 0:00:27.1]} 34...
Be6 {[%clk 0:00:09.9]} 35. Be4 {[%clk 0:00:24.7]} 35... b4 {[%clk 0:00:05.5]}
36. axb4 {[%clk 0:00:24.4]} 36... axb4 {[%clk 0:00:06]} 37. Ke2 {[%clk
0:00:23.6]} 37... g5 {[%clk 0:00:04.5]} 38. Kd2 {[%clk 0:00:23.5]} 38... Ke5
{[%clk 0:00:04.5]} 39. Bh7 {[%clk 0:00:20.7]} 39... Kd4 {[%clk 0:00:03.2]} 40.
Kc2 {[%clk 0:00:20.6]} 40... b3+ {[%clk 0:00:01.5]} 41. Kb2 {[%clk 0:00:20.8]}
41... Bd5 {[%clk 0:00:02.4]} 42. g3 {[%clk 0:00:18.5]} 42... Ke5 {[%clk
0:00:02.1]} 43. f4+ {[%clk 0:00:17.1]} 43... gxf4 {[%clk 0:00:02.1]} 44. gxf4+
{[%clk 0:00:17.4]} 44... Kxf4 {[%clk 0:00:03]} 45. Bc2 {[%clk 0:00:11]} 45...
Ke5 {[%clk 0:00:03.9]} 46. Bxb3 {[%clk 0:00:11.3]} 1/2-1/2